[Event "1000GM Schev-C-B February 2024"]
[Site "Santa Clara"]
[Date "2024.02.25"]
[Round "3.1"]
[White "Xia, Joshua"]
[Black "Gracia Alvarez, Gerardo Antonio"]
[Result "0-1"]
[ECO "C76"]
[WhiteElo "1922"]
[BlackElo "2224"]
[Annotator "RC"]
[PlyCount "102"]
[EventDate "2024.02.13"]
[EventType "schev"]
[EventCountry "USA"]
[SourceTitle "playchess.com"]
[Source "ChessBase"]
[SourceQuality "1"]
[TimeControl "5400+30"]

1. e4 {[%emt 0:00:36]} e5 {[%emt 0:00:07]} 2. Nf3 {[%emt 0:00:17]} Nc6 {[%emt 0:00:04]} 3. Bb5 {[%emt 0:00:23]} a6 {[%emt 0:00:05]} 4. Ba4 {[%emt 0:00:05]} d6 {[%emt 0:00:08]} 5. c3 {[%emt 0:00:47]} Bd7 {[%emt 0:02:13]} 6. d4 {[%emt 0:01:17]} g6 {[%emt 0:01:38]} 7. Bg5 {[%emt 0:01:10]} Be7 {[%emt 0:00:41]} 8. Be3 {[%emt 0:02:35]} Nf6 {[%emt 0:00:14]} 9. Nbd2 {[%emt 0:02:58]} b5 {[%emt 0:02:31]} 10. Bb3 {[%emt 0:00:33]} Ng4 {[%emt 0:00:36]} 11. Qe2 {[%emt 0:04:50]} Na5 {[%emt 0:05:08]} 12. h3 {[%emt 0:04:43]} Nxe3 {[%emt 0:00:09]} 13. Qxe3 {[%emt 0:00:06]} Nxb3 {[%emt 0:03:04]} 14. axb3 {[%emt 0:00:22]} exd4 {[%emt 0:01:10]} 15. cxd4 {[%emt 0:00:19]} c5 {[%emt 0:00:25]} 16. O-O {[%emt 0:06:00]} O-O {[%emt 0:01:02]} 17. d5 {[%emt 0:01:07]} Bf6 {[%emt 0:04:23]} 18. Qf4 {[%emt 0:04:21]} Bc8 {[%emt 0:03:39]} 19. Ra2 {[%emt 0:03:27]} Re8 {[%emt 0:00:26]} 20. Rc1 {[%emt 0:03:50]} Bg7 {[%emt 0:06:20]} 21. b4 {[%emt 0:19:33]} cxb4 {[%emt 0:03:30]} 22. Nb3 {[%emt 0:02:21]} Qf6 {[%emt 0:05:19]} 23. Qxf6 {[%emt 0:02:59]} Bxf6 {[%emt 0:00:03]} 24. Nfd2 {[%emt 0:00:16]} Ra7 {[%emt 0:22:39]} 25. f4 {[%emt 0:09:35]} Bd8 {[%emt 0:08:46]} 26. Kf2 {[%emt 0:05:14]} f5 {[%emt 0:05:42]} 27. Kf3 {[%emt 0:04:23]} Bb7 {[%emt 0:00:25]} 28. Nd4 {[%emt 0:01:33]} fxe4+ {[%emt 0:00:15]} 29. Ke2 {[%emt 0:01:00]} Bxd5 {[%emt 0:00:56]} 30. Nxb5 {[%emt 0:01:21]} Bxa2 {[%emt 0:04:27]} 31. Nxa7 {[%emt 0:00:08]} Bf6 {[%emt 0:02:56]} 32. Nc6 {[%emt 0:02:45]} a5 {[%emt 0:07:08]} 33. Nxa5 {[%emt 0:01:35]} e3 {[%emt 0:01:32]} 34. Nf3 {[%emt 0:01:35]} Bf7 {[%emt 0:04:02]} 35. b3 {[%emt 0:02:40]} Bc3 {[%emt 0:01:21]} 36. Ng5 {[%emt 0:00:59]} d5 {[%emt 0:01:09]} 37. Nxf7 {[%emt 0:00:58]} Kxf7 {[%emt 0:00:04]} 38. Rd1 {[%emt 0:00:31]} Bd2 {[%emt 0:01:11]} 39. Nc6 {[%emt 0:00:39]} Kf6 {[%emt 0:00:31]} 40. Ra1 {[%emt 0:02:39]} Kf5 {[%emt 0:00:17]} 41. Ra4 {[%emt 0:01:13]} Ke4 {[%emt 0:00:41]} 42. g3 {[%emt 0:02:41]} d4 {[%emt 0:00:14]} 43. Ne5 {[%emt 0:01:25]} Rxe5 {[%emt 0:00:13]} 44. fxe5 {[%emt 0:01:04]} d3+ {[%emt 0:00:05]} 45. Kd1 {[%emt 0:01:10]} Bc3 {[%emt 0:00:07]} 46. Ra2 {[%emt 0:00:27]} Kf3 {[%emt 0:00:36]} 47. e6 {[%emt 0:01:00]} e2+ {[%emt 0:00:03]} 48. Rxe2 {[%emt 0:00:12]} dxe2+ {[%emt 0:00:05]} 49. Kc2 {[%emt 0:00:11]} e1=Q {[%emt 0:00:05]} 50. e7 {[%emt 0:00:07]} Qd2+ {[%emt 0:00:06]} 51. Kb1 {[%emt 0:00:03]} Qb2# {[%emt 0:00:09]} 0-1

[Event "1000GM Schev-C-B February 2024"]
[Site "Santa Clara"]
[Date "2024.02.25"]
[Round "3.2"]
[White "Qi, Jenny"]
[Black "Echavarria, Johann"]
[Result "0-1"]
[ECO "B33"]
[WhiteElo "1605"]
[BlackElo "2269"]
[Annotator "TA"]
[PlyCount "96"]
[EventDate "2024.02.13"]
[EventType "schev"]
[EventCountry "USA"]
[SourceTitle "playchess.com"]
[Source "ChessBase"]
[SourceQuality "1"]
[TimeControl "5400+30"]

{[%evp 17,95,41,48,44,46,28,27,0,0,0,0,0,0,-9,-18,-18,0,-12,5,-51,-53,-64,-61,-115,-66,-50,-58,-57,-59,-92,-80,-72,-78,-69,-59,-60,-26,-18,-29,-50,-10,-39,-26,-62,-64,-170,-180,-233,-247,-233,-242,-247,-244,-415,-406,-654,-641,-706,-712,-696,-687,-1425,-1340,-29987,-29988,-29993,-29994,-29994,-29992,-29992,-29993,-29994,-29995,-29995,-29996,-29997,-29998,-29998,-29999,-29999]} 1. e4 {[%emt 0:04:27]} c5 {[%emt 0:00:06]} 2. Nf3 {[%emt 0:00:23][%cal Bg1f3,Bf3d4,Bd4b5,Bb5a3,Ba3c4,Bc4e3][%mdl 32]} Nc6 {[%emt 0:00:03]} 3. d4 {[%emt 0:00:40]} cxd4 {[%emt 0:00:04]} 4. Nxd4 {[%emt 0:00:09]} Nf6 {[%emt 0:00:03]} 5. Nc3 {[%emt 0:00:13]} e6 {[%emt 0:00:04]} 6. Ndb5 {[%emt 0:00:51]} d6 {[%emt 0:00:04]} 7. Bf4 {[%emt 0:01:26]} e5 {[%emt 0:00:04]} 8. Bg5 {[%emt 0:00:15]} a6 {[%emt 0:00:03]} 9. Na3 {[%emt 0:00:31]} Be6 {[%emt 0:00:03]} 10. Nc4 {[%emt 0:01:30]} Rb8 {[%emt 0:00:06]} 11. Ne3 {[%emt 1:25:35]} Be7 {[%emt 0:00:30][%cal Of6e4]} 12. Bxf6 {[%emt 0:00:00] White has an edge.} Bxf6 {[%emt 0:00:05]} 13. Ncd5 {[%emt 0:00:00]} Bg5 {[%emt 0:00:05]} 14. c3 {[%emt 0:00:00]} O-O {[%emt 0:00:41]} 15. h4 {[%emt 0:00:00]} Bxe3 {[%emt 0:00:44]} 16. Nxe3 {[%emt 0:02:30]} b5 {[%emt 0:04:32]} 17. g3 {[%emt 0:00:00]} b4 {[%emt 0:04:38]} 18. c4 {[%emt 0:00:00] [#]} ({White should play} 18. Bc4 $11) 18... b3 $1 $15 {[%emt 0:06:35]} 19. axb3 {[%emt 0:00:00][%cal Of1d3]} (19. a3 Qa5+) 19... Nd4 {[%emt 0:08:34]} 20. Bg2 (20. Ra3 $15) 20... a5 {[%emt 0:01:22] Black is more active.} ({Don't do} 20... Nxb3 21. Rxa6 Nd4 22. O-O $15) ({Black should try} 20... Rxb3 $17 21. Rxa6 Qc8 (21... Rxb2 22. O-O $17)) 21. Ra3 Qb6 {[%emt 0:02:50]} 22. O-O {[%cal Oe3f5]} Nxb3 {[%emt 1:10:14]} 23. Nd5 {[%emt 0:00:00]} Qb7 {[%emt 0:00:00]} 24. f4 {[%emt 0:00:00]} Bxd5 {[%emt 0:00:00]} (24... Qa7+ {feels hotter.} 25. Rf2 Bxd5 26. Qxd5 exf4 27. gxf4 Qe3) 25. Qxd5 {[%emt 0:00:00]} Qxd5 {[%emt 0:00:00]} 26. cxd5 {[%emt 0:00:00]} Rfc8 {[%emt 0:00:00]} 27. fxe5 {[%emt 0:00:00]} dxe5 {[%emt 0:00:00]} 28. Rd1 {[%emt 0:00:00]} Rc5 {[%emt 0:00:00]} 29. d6 {[%emt 0:00:00][%cal Oa3b3]} Nd4 {[%emt 0:03:30][%cal Og8f8]} 30. d7 {[%emt 0:00:00]} Kf8 {[%emt 0:00:00][%cal Of8e7]} 31. Kf1 {Black continues to play with concentration.} ({Better is} 31. Rc3 $15 Ne2+ 32. Kh1 Nxc3 33. d8=Q+ Rxd8 34. Rxd8+ Ke7 35. Ra8) 31... Ke7 $1 $19 {[%emt 0:00:00]} ({Inferior is} 31... Rxb2 32. d8=Q#) 32. Rc3 {[#]} (32. Rd2 $142) 32... Rxc3 $1 {[%emt 0:01:30]} 33. bxc3 {[%emt 0:03:29][%mdl 4096] Endgame. [#] KRB-KRN} Nb3 {[%emt 0:00:00] And now ...a4 would win.} 34. Rd5 {[%emt 0:05:31]} a4 {[%emt 0:00:00]} 35. Rxe5+ $2 {[%emt 0:00:00]} (35. d8=R Rxd8 36. Rxe5+ Kf8 37. Rb5) 35... Kxd7 {[%emt 0:00:00] Hoping for ...a3.} 36. Bh3+ (36. Rf5 $142 Ke7 37. Rf2) 36... Kc6 {[%emt 0:02:00] ...a3 is the strong threat.} 37. Re7 {[%emt 0:00:31]} Rb7 {[%emt 0:00:00]} 38. Re8 {[%emt 0:00:30]} Ra7 {[%emt 0:00:00]} 39. Rb8 {[%emt 0:00:30] [#]} a3 $1 {[%emt 0:00:00] ( -> ...a2)} 40. e5 {[%emt 0:00:30]} (40. Rc8+ Kb5) 40... a2 {[%emt 0:00:00] Black mates.} 41. Rxb3 {[%emt 0:00:30]} a1=Q+ {[%emt 0:00:00]} ({And not} 41... a1=B 42. Bg2+ Kc5 43. Bh3 $14) 42. Kf2 {[%emt 0:00:30]} Qa2+ {[%emt 0:00:00]} 43. Ke3 {[%emt 0:00:30]} Qxb3 {[%emt 0:00:00]} 44. Kd4 {[%emt 0:00:30]} Ra4+ {[%emt 0:00:00]} 45. Kd3 {[%emt 0:00:30]} Qc4+ {[%emt 0:00:00]} 46. Kd2 {[%emt 0:00:30]} Ra2+ {[%emt 0:00:00]} 47. Kc1 {[%emt 0:00:30]} Qxc3+ {[%emt 0:00:00]} 48. Kd1 {[%emt 0:00:30]} Qd2# {[%emt 0:00:17] Weighted Error Value: White=0.49/Black=0.05 (flawless) .  Mistake:       	White=6     	Black=1      Inaccurate:     	White=4     	Black=2      OK:         	White=5     	Black=10     Best:        	White=2     	Black=3      Strong:       	---       	Black=2} 0-1

[Event "1000GM Schev-C-B February 2024"]
[Site "Santa Clara"]
[Date "2024.02.25"]
[Round "3.3"]
[White "Dominguez Aguilar, Guillermo"]
[Black "Widjaja, Luke"]
[Result "1/2-1/2"]
[ECO "C45"]
[WhiteElo "2319"]
[BlackElo "2037"]
[Annotator "RC"]
[PlyCount "91"]
[EventDate "2024.02.13"]
[EventType "schev"]
[EventCountry "USA"]
[SourceTitle "playchess.com"]
[Source "ChessBase"]
[SourceQuality "1"]
[TimeControl "5400+30"]

1. e4 {[%emt 0:00:17]} e5 {[%emt 0:00:15]} 2. Nf3 {[%emt 0:00:27]} Nc6 {[%emt 0:00:04]} 3. d4 {[%emt 0:00:15]} exd4 {[%emt 0:00:05]} 4. Nxd4 {[%emt 0:00:06]} Bc5 {[%emt 0:00:06]} 5. Be3 {[%emt 0:01:22]} Qf6 {[%emt 0:00:46]} 6. c3 {[%emt 0:00:21]} Nge7 {[%emt 0:01:04]} 7. Bb5 {[%emt 0:02:42]} Bb6 {[%emt 0:07:47]} 8. O-O {[%emt 0:01:12]} O-O {[%emt 0:03:55]} 9. f4 {[%emt 0:03:38]} d5 {[%emt 0:02:56]} 10. e5 {[%emt 0:04:13]} Qh6 {[%emt 0:00:13]} 11. Qd2 {[%emt 0:05:21]} Nxd4 {[%emt 0:00:55]} 12. cxd4 {[%emt 0:01:40]} Nf5 {[%emt 0:00:11]} 13. Bf2 {[%emt 0:00:59]} f6 {[%emt 0:10:29]} 14. a4 {[%emt 0:08:33]} a6 {[%emt 0:03:06]} 15. Bd3 {[%emt 0:01:36]} Nxd4 {[%emt 0:13:22]} 16. Bxh7+ {[%emt 0:00:35]} Kxh7 {[%emt 0:00:52]} 17. Bxd4 {[%emt 0:00:36]} fxe5 {[%emt 0:00:14]} 18. Bxb6 {[%emt 0:02:10]} cxb6 {[%emt 0:01:23]} 19. Qxd5 {[%emt 0:03:18]} exf4 {[%emt 0:02:27]} 20. Nc3 {[%emt 0:00:25]} Bg4 {[%emt 0:06:41]} 21. Qxb7 {[%emt 0:07:43]} Rad8 {[%emt 0:01:45]} 22. Rf2 {[%emt 0:01:24]} Kh8 {[%emt 0:10:50]} 23. Raf1 {[%emt 0:02:58]} f3 {[%emt 0:03:45]} 24. h3 {[%emt 0:02:09]} Bc8 {[%emt 0:02:49]} 25. Qc7 {[%emt 0:04:38]} Qe3 {[%emt 0:02:11]} 26. Kh2 {[%emt 0:02:58]} Rd2 {[%emt 0:02:22]} 27. Nd5 {[%emt 0:06:36]} Qxf2 {[%emt 0:03:59]} 28. Rxf2 {[%emt 0:00:31]} Rxf2 {[%emt 0:00:03]} 29. Nf4 {[%emt 0:01:04]} Bf5 {[%emt 0:05:08]} 30. Kg3 {[%emt 0:08:09]} Rxb2 {[%emt 0:05:37]} 31. gxf3 {[%emt 0:00:55]} Rf6 {[%emt 0:05:11]} 32. h4 {[%emt 0:05:45]} Rc2 {[%emt 0:01:39]} 33. Qd8+ {[%emt 0:01:11]} Kh7 {[%emt 0:00:03]} 34. Nd5 {[%emt 0:00:39]} Rg6+ {[%emt 0:00:44]} 35. Kf4 {[%emt 0:00:20]} Rc8 {[%emt 0:00:41]} 36. Qe7 {[%emt 0:00:35]} Bh3 {[%emt 0:01:22]} 37. Nc7 {[%emt 0:06:53]} Bg2 {[%emt 0:01:26]} 38. Ne6 {[%emt 0:01:42]} Rc4+ {[%emt 0:01:33]} 39. Ke5 {[%emt 0:02:37]} Rc2 {[%emt 0:02:01]} 40. Nf8+ {[%emt 0:02:30]} Kh6 {[%emt 0:00:00]} 41. Qf7 {[%emt 0:01:55]} Rc5+ {[%emt 0:00:00]} 42. Kd4 {[%emt 0:00:25]} Rd6+ {[%emt 0:00:00]} 43. Ke3 {[%emt 0:00:57]} Rf6 {[%emt 0:00:05]} 44. Qg8 {[%emt 0:00:07]} Rxf3+ {[%emt 0:00:05]} 45. Ke2 {[%emt 0:00:48]} Re5+ {[%emt 0:00:37]} 46. Kd2 {[%emt 0:01:42]} 1/2-1/2

[Event "1000GM Schev-C-B February 2024"]
[Site "Santa Clara"]
[Date "2024.02.25"]
[Round "3.4"]
[White "Gongora Montes, Benjamin"]
[Black "Chinni, Rishabh"]
[Result "1-0"]
[ECO "D03"]
[WhiteElo "2173"]
[BlackElo "1939"]
[Annotator "RC"]
[PlyCount "103"]
[EventDate "2024.02.13"]
[EventType "schev"]
[EventCountry "USA"]
[SourceTitle "playchess.com"]
[Source "ChessBase"]
[SourceQuality "1"]
[TimeControl "5400+30"]

1. d4 {[%emt 0:00:34]} Nf6 {[%emt 1:31:00]} 2. Nf3 {[%emt 0:00:04]} e6 {[%emt 0:00:00]} 3. Bg5 {[%emt 0:00:05]} d5 {[%emt 0:00:00]} 4. Nbd2 {[%emt 0:00:05]} Be7 {[%emt 0:00:00]} 5. e3 {[%emt 0:00:05]} h6 {[%emt 0:00:00]} 6. Bf4 {[%emt 0:00:19]} c5 {[%emt 0:00:00]} 7. c3 {[%emt 0:00:06]} Bd6 {[%emt 0:00:00]} 8. Ne5 {[%emt 0:00:36]} O-O {[%emt 0:00:00]} 9. Bd3 {[%emt 0:00:13]} Nc6 {[%emt 0:00:00]} 10. Bg3 {[%emt 0:00:48]} Qc7 {[%emt 0:00:00]} 11. f4 {[%emt 0:00:29]} Rb8 {[%emt 0:00:00]} 12. O-O {[%emt 0:02:54]} b5 {[%emt 0:00:00]} 13. Bh4 {[%emt 0:00:45]} Be7 {[%emt 0:00:00]} 14. g4 {[%emt 0:00:55]} Nxe5 {[%emt 0:00:00]} 15. fxe5 {[%emt 0:00:45]} Ne8 {[%emt 0:00:00]} 16. Bg3 {[%emt 0:00:11]} Qd8 {[%emt 0:00:00]} 17. Rf3 {[%emt 0:00:19]} b4 {[%emt 0:00:00]} 18. Qc2 {[%emt 0:05:22]} Rb7 {[%emt 0:00:00]} 19. Raf1 {[%emt 0:06:47]} Bg5 {[%emt 0:00:00]} 20. dxc5 {[%emt 0:07:24]} bxc3 {[%emt 0:00:00]} 21. Qxc3 {[%emt 0:02:00]} Bxe3+ {[%emt 0:00:00]} 22. Kg2 {[%emt 0:02:16]} Rc7 {[%emt 0:00:00]} 23. Nb3 {[%emt 0:06:56]} d4 {[%emt 0:00:00]} 24. Qc2 {[%emt 0:00:07]} Bb7 {[%emt 0:00:00]} 25. Be4 {[%emt 0:00:10]} d3 {[%emt 0:00:00]} 26. Qc4 {[%emt 0:00:24]} Bxe4 {[%emt 0:00:00]} 27. Qxe4 {[%emt 0:00:12]} Bxc5 {[%emt 0:00:00]} 28. Rxd3 {[%emt 0:00:43]} Qc8 {[%emt 0:00:00]} 29. Rc1 {[%emt 0:04:11]} Be7 {[%emt 0:00:00]} 30. Rdc3 {[%emt 0:00:14]} Qb8 {[%emt 0:00:00]} 31. Qc2 {[%emt 0:02:14]} Qb7+ {[%emt 0:00:00]} 32. Kg1 {[%emt 0:00:12]} Rxc3 {[%emt 0:00:00]} 33. Qxc3 {[%emt 0:00:30]} Bg5 {[%emt 0:00:00]} 34. Qc6 {[%emt 0:02:14]} Qe7 {[%emt 0:00:00]} 35. Rc3 {[%emt 0:02:08]} Qd8 {[%emt 0:00:58]} 36. Kg2 {[%emt 0:00:50]} g6 {[%emt 0:01:59]} 37. Rc2 {[%emt 0:03:50]} Ng7 {[%emt 0:01:21]} 38. Qf3 {[%emt 0:05:49]} Qe7 {[%emt 0:01:48]} 39. Nc5 {[%emt 0:00:12]} h5 {[%emt 0:00:52]} 40. Ne4 {[%emt 0:00:21]} h4 {[%emt 0:03:49]} 41. Bf2 {[%emt 0:00:10]} Ne8 {[%emt 0:04:43]} 42. Bc5 {[%emt 0:01:09]} Qd8 {[%emt 0:00:39]} 43. Bxf8 {[%emt 0:00:18]} Kxf8 {[%emt 0:00:02]} 44. Nxg5 {[%emt 0:06:53]} Qxg5 {[%emt 0:00:04]} 45. Rf2 {[%emt 0:00:07]} Qe7 {[%emt 0:01:42]} 46. Qa3 {[%emt 0:00:06]} Nc7 {[%emt 0:03:52]} 47. Rc2 {[%emt 0:00:58]} Qxa3 {[%emt 0:00:16]} 48. bxa3 {[%emt 0:00:10]} Nb5 {[%emt 0:00:09]} 49. a4 {[%emt 0:00:15]} Nd4 {[%emt 0:00:12]} 50. Rc4 {[%emt 0:00:23]} Ne2 {[%emt 0:01:26]} 51. Kf2 {[%emt 0:00:07]} g5 {[%emt 0:00:21]} 52. Kxe2 {[%emt 0:00:07]} 1-0

[Event "1000GM Schev-C-B February 2024"]
[Site "Santa Clara"]
[Date "2024.02.25"]
[Round "3.5"]
[White "Jin, Austin"]
[Black "Vidarte Morales, Arturo"]
[Result "1-0"]
[ECO "B09"]
[WhiteElo "1836"]
[BlackElo "2261"]
[Annotator "RC"]
[PlyCount "129"]
[EventDate "2024.02.13"]
[EventType "schev"]
[EventCountry "USA"]
[SourceTitle "playchess.com"]
[Source "ChessBase"]
[SourceQuality "1"]
[TimeControl "5400+30"]

1. e4 {[%emt 0:03:36]} d6 {[%emt 0:00:02]} 2. d4 {[%emt 0:00:11]} g6 {[%emt 0:00:02]} 3. Nc3 {[%emt 0:00:20]} Bg7 {[%emt 0:00:03]} 4. f4 {[%emt 0:01:15]} Nf6 {[%emt 0:00:03]} 5. Nf3 {[%emt 0:00:27]} O-O {[%emt 0:00:09]} 6. Be2 {[%emt 0:00:32]} Na6 {[%emt 0:00:43]} 7. O-O {[%emt 0:02:06]} c6 {[%emt 0:01:39]} 8. Kh1 {[%emt 0:02:47]} Nc7 {[%emt 0:00:10]} 9. Be3 {[%emt 0:01:30]} b5 {[%emt 0:00:12]} 10. a3 {[%emt 0:01:17]} Bb7 {[%emt 0:00:49]} 11. Bd3 {[%emt 0:03:37]} a6 {[%emt 0:02:16]} 12. Qd2 {[%emt 0:04:08]} Nd7 {[%emt 0:00:33]} 13. Ne2 {[%emt 0:02:06]} c5 {[%emt 0:02:21]} 14. c3 {[%emt 0:01:12]} e6 {[%emt 0:00:57]} 15. Ng3 {[%emt 0:03:12]} c4 {[%emt 0:03:53]} 16. Bc2 {[%emt 1:10:14]} f5 {[%emt 0:00:06]} 17. d5 {[%emt 0:00:00]} fxe4 {[%emt 0:11:03]} 18. Bxe4 {[%emt 0:00:00]} Nf6 {[%emt 0:02:32]} 19. Nd4 {[%emt 0:00:00]} Nxe4 {[%emt 0:00:31]} 20. Nxe4 {[%emt 0:00:00]} Bxd5 {[%emt 0:00:16]} 21. Ng3 {[%emt 0:00:00]} Qd7 {[%emt 0:00:57]} 22. Rae1 {[%emt 0:00:00]} Rae8 {[%emt 0:01:25]} 23. Nc2 {[%emt 0:00:00]} Bb7 {[%emt 0:00:59]} 24. Rd1 {[%emt 0:00:00]} Nd5 {[%emt 0:02:39]} 25. Nb4 {[%emt 0:00:00]} Nxe3 {[%emt 0:05:30]} 26. Qxe3 {[%emt 0:00:00]} a5 {[%emt 0:00:01]} 27. Nc2 {[%emt 0:00:00]} e5 {[%emt 0:00:05]} 28. fxe5 {[%emt 0:00:00]} Rxf1+ {[%emt 0:05:39]} 29. Nxf1 {[%emt 0:00:00]} Qg4 {[%emt 0:04:11]} 30. Rd2 {[%emt 0:00:00]} Bxe5 {[%emt 0:01:53]} 31. Rf2 {[%emt 0:00:00]} Rf8 {[%emt 0:04:12]} 32. Rxf8+ {[%emt 0:00:00]} Kxf8 {[%emt 0:02:42]} 33. Qf2+ {[%emt 0:00:00]} Kg8 {[%emt 0:01:02]} 34. Nce3 {[%emt 0:00:00]} Qe6 {[%emt 0:04:11]} 35. Qh4 {[%emt 0:00:00]} Bf6 {[%emt 0:00:14]} 36. Qf4 {[%emt 0:00:00]} Kg7 {[%emt 0:11:29]} 37. a4 {[%emt 0:00:00]} b4 {[%emt 0:02:00]} 38. cxb4 {[%emt 0:01:25]} d5 {[%emt 0:06:06]} 39. Qc7+ {[%emt 0:04:01]} Qf7 {[%emt 0:00:05]} 40. Qb6 {[%emt 0:01:15]} axb4 {[%emt 0:05:31]} 41. Qxb4 {[%emt 0:00:56]} Ba8 {[%emt 0:02:29]} 42. Qb8 {[%emt 0:01:51]} Qb7 {[%emt 0:00:14]} 43. Qg3 {[%emt 0:01:17]} Kg8 {[%emt 0:01:15]} 44. Ng4 {[%emt 0:01:01]} Bg7 {[%emt 0:10:57]} 45. Qd6 {[%emt 0:01:07]} Qf7 {[%emt 0:02:50]} 46. Nfe3 {[%emt 0:00:20]} h5 {[%emt 0:00:47]} 47. Ne5 {[%emt 0:01:23]} Qf6 {[%emt 0:00:28]} 48. Qxf6 {[%emt 0:00:47]} Bxf6 {[%emt 0:00:03]} 49. Nxg6 {[%emt 0:00:16]} Bxb2 {[%emt 0:01:02]} 50. Ne7+ {[%emt 0:00:17]} Kf7 {[%emt 0:00:02]} 51. N7xd5 {[%emt 0:00:08]} Bc1 {[%emt 0:01:27]} 52. h4 {[%emt 0:01:08]} Bd2 {[%emt 0:00:15]} 53. Nxc4 {[%emt 0:00:34]} Be1 {[%emt 0:00:27]} 54. Ndb6 {[%emt 0:00:28]} Bc6 {[%emt 0:05:07]} 55. Ne5+ {[%emt 0:00:13]} Ke6 {[%emt 0:00:06]} 56. Nxc6 {[%emt 0:00:10]} Kd6 {[%emt 0:00:02]} 57. Nb8 {[%emt 0:01:05]} Kc7 {[%emt 0:00:38]} 58. N8d7 {[%emt 0:00:09]} Bxh4 {[%emt 0:00:47]} 59. Kg1 {[%emt 0:00:28]} Bd8 {[%emt 0:00:41]} 60. Kf1 {[%emt 0:00:27]} Kc6 {[%emt 0:00:03]} 61. Ke2 {[%emt 0:00:16]} Bc7 {[%emt 0:01:35]} 62. Kd3 {[%emt 0:00:11]} Bxb6 {[%emt 0:00:30]} 63. Nxb6 {[%emt 0:00:16]} Kxb6 {[%emt 0:01:04]} 64. Ke4 {[%emt 0:00:15]} Ka5 {[%emt 0:00:00]} 65. Kf5 {[%emt 0:00:09]} 1-0

[Event "1000GM Schev-C-B February 2024"]
[Site "Santa Clara"]
[Date "2024.02.25"]
[Round "4.1"]
[White "Echavarria, Johann"]
[Black "Xia, Joshua"]
[Result "1-0"]
[ECO "A16"]
[WhiteElo "2269"]
[BlackElo "1922"]
[Annotator "TA"]
[PlyCount "83"]
[EventDate "2024.02.13"]
[EventType "schev"]
[EventCountry "USA"]
[SourceTitle "playchess.com"]
[Source "ChessBase"]
[SourceQuality "1"]
[TimeControl "5400+30"]

{[%evp 9,83,48,39,16,0,19,29,0,27,9,38,37,54,43,83,58,78,82,77,82,165,172,318,319,268,296,385,368,389,391,789,779,715,755,1081,1075,891,732,704,626,743,719,743,722,702,599,619,619,575,602,595,600,672,662,694,699,708,700,889,982,1468,1514,29986,29987,29987,29988,29988,29989,29989,29990,29990,29991,29991,29991,29993,29994]} 1. Nf3 {[%emt 0:00:36]} Nf6 {[%emt 0:00:10]} 2. c4 {[%emt 0:00:07]} g6 {[%emt 0:00:10]} 3. Nc3 {[%emt 0:00:07]} Bg7 {[%emt 0:00:04]} 4. e4 {[%emt 0:00:15]} e5 {[%emt 0:00:04]} 5. Nxe5 {[%emt 0:12:30]} O-O {[%emt 0:00:22]} 6. d3 {[%emt 0:07:24]} Nxe4 $1 {[%emt 0:05:22]} 7. dxe4 {[%emt 0:00:04]} Bxe5 {[%emt 0:00:07]} 8. Bd3 {[%emt 0:00:06] Weiß hat minimalen Vorteil.} Nc6 {[%emt 0:01:08]} 9. Bh6 {[%emt 0:03:11]} Re8 {[%emt 0:06:57]} 10. Qd2 {[%emt 0:01:33]} Nb4 {[%emt 0:03:33]} 11. Be2 {[%emt 0:07:31]} Qf6 {[%emt 0:06:50]} 12. O-O {[%emt 0:08:12]} Qd6 {[%emt 0:08:19]} 13. Qxd6 {[%emt 0:19:19] Weiß verwandelt nun seinen Vorteil.} Bxd6 {[%emt 0:00:12]} 14. Nb5 {[%emt 0:00:41]} Be5 {[%emt 0:00:54]} (14... Rxe4 $16 15. Nxd6 cxd6 (15... Rxe2 16. Rae1 $16)) 15. f4 $18 {[%emt 0:00:08]} a6 {[%emt 0:00:07]} (15... Bd6 $142 16. Nxd6 cxd6) 16. fxe5 {[%emt 0:00:09]} axb5 {[%emt 0:00:09]} 17. cxb5 {[%emt 0:00:04] Und Bc4 würde nun gewinnen.} d6 {[%emt 0:02:08]} 18. a3 {[%emt 0:09:40]} Nc2 {[%emt 0:04:02]} 19. Bc4 {[%emt 0:00:03]} Re7 {[%emt 0:04:42] [#]} (19... Be6) 20. Rxf7 $1 {[%emt 0:05:36][%mdl 512]} Rxf7 {[%emt 0:07:36]} 21. Rf1 {[%emt 0:00:07]} Bf5 {[%emt 0:01:05]} 22. exf5 {[%emt 0:00:15]} g5 {[%emt 0:00:51]} 23. e6 {[%emt 0:02:32]} Rf6 {[%emt 0:01:50]} 24. Bxg5 {[%emt 0:02:53]} Kg7 {[%emt 0:00:15]} 25. Bd3 {[%emt 0:05:16]} Nd4 {[%emt 0:00:30]} 26. Rf4 {[%emt 0:01:50]} c5 {[%emt 0:03:31]} 27. bxc6 {[%emt 0:02:17]} Nxc6 {[%emt 0:00:40]} 28. g4 {[%emt 0:00:56]} Ne5 {[%emt 0:00:29]} 29. Bxf6+ {[%emt 0:00:12]} Kxf6 {[%emt 0:00:04][%mdl 4096] Endspiel. KRB-KRN} 30. Be2 {[%emt 0:00:04]} Rc8 {[%emt 0:02:10]} 31. Rb4 {[%emt 0:01:40]} Rc7 {[%emt 0:02:42]} 32. Kf2 {[%emt 0:00:16]} d5 {[%emt 0:02:30]} 33. Ke3 {[%emt 0:00:19]} h6 {[%emt 0:01:05]} 34. Rb5 {[%emt 0:01:27]} Rc2 {[%emt 0:01:17]} 35. Rxd5 {[%emt 0:00:47]} Rxb2 {[%emt 0:00:19] [#]} 36. Rxe5 $1 {[%emt 0:00:38] KRB-KR. Weiß setzt Matt.} Rb3+ {[%emt 0:01:04]} 37. Kf4 {[%emt 0:00:35]} Rxa3 {[%emt 0:00:39]} 38. h4 {[%emt 0:00:59]} Ra4+ {[%emt 0:00:40]} 39. Re4 {[%emt 0:00:07]} b5 {[%emt 0:00:07]} 40. g5+ {[%emt 0:00:11]} Ke7 {[%emt 0:00:04]} 41. f6+ {[%emt 0:00:15]} Ke8 {[%emt 0:00:29]} 42. Bxb5+ {[%emt 0:00:08] Gewichteter Fehlerwert: Weiß=0.10 (sehr präzise) /Schwarz=0.40.  Fehler:       	---       	Schwarz=3     Ungenau:       	Weiß=1     	Schwarz=4     OK:         	Weiß=8     	Schwarz=4     Bester:       	Weiß=4     	---        Stark:        	---       	Schwarz=1     Brilliant:      	Weiß=1     	---} 1-0